Body Name,ONS SNAC ID,Pay Date,Transaction No,Amount �,Supplier Name,Company Registration No,Department,Account Name,CIPFA Service Reporting
Swale Borough Council,29UM,05/09/2018,1161942,914.00,A T BLINDS,                         ,PROPERTY SERVICES,Buildings Maintenance,Corporate & Democratic Core
Swale Borough Council,29UM,05/09/2018,1161966,440.00,A T BLINDS,                         ,PROPERTY SERVICES,Buildings Maintenance,Corporate & Democratic Core
Swale Borough Council,29UM,05/09/2018,1161892,256.50,ACORN MAINTENANCE SERVICES,3546898                  ,HOUSING SERVICES,Staying Put small repairs (contractors),Housing
Swale Borough Council,29UM,05/09/2018,1161893,285.00,ACORN MAINTENANCE SERVICES,3546898                  ,HOUSING SERVICES,Staying Put small repairs (contractors),Housing
Swale Borough Council,29UM,05/09/2018,1161894,620.00,ACORN MAINTENANCE SERVICES,3546898                  ,HOUSING SERVICES,Staying Put small repairs (contractors),Housing
Swale Borough Council,29UM,05/09/2018,1162015,4750.00,ALCOCK ROOFING 2010 LTD,                         ,HOUSING SERVICES,Housing Renovation Grants,Not used in this Structure
Swale Borough Council,29UM,05/09/2018,1161859,12588.63,APCOA PARKING (UK) LTD,2572947                  ,CAR PARKS,Private Contractors,Highway and Transport Services
Swale Borough Council,29UM,05/09/2018,1161859,18882.95,APCOA PARKING (UK) LTD,2572947                  ,CAR PARKS,Private Contractors,Highway and Transport Services
Swale Borough Council,29UM,05/09/2018,1161984,1740.00,ARCHWAY HIGHWAY SERVICES,07894230                 ,CAR PARKS,Maintenance - Grounds,Highway and Transport Services
Swale Borough Council,29UM,05/09/2018,1161989,830.80,ATLAS FACILITIES MANAGEMENT LTD,05572730                 ,PROPERTY SERVICES,Fees and Services,Trading Undertaking
Swale Borough Council,29UM,05/09/2018,1161837,387.30,BLENWOOD LTD,4383277                  ,LEISURE & OPEN SPACES,Grounds Contract Variations,Cultural and Related Services
Swale Borough Council,29UM,05/09/2018,1161838,736.21,BLENWOOD LTD,4383277                  ,CAR PARKS,Maintenance - Grounds,Highway and Transport Services
Swale Borough Council,29UM,05/09/2018,1161841,519.31,BLENWOOD LTD,4383277                  ,LEISURE & OPEN SPACES,Grounds Contract Variations,Cultural and Related Services
Swale Borough Council,29UM,05/09/2018,1161856,3200.67,BLENWOOD LTD,4383277                  ,LEISURE & OPEN SPACES,Grounds Maint Suspense,Cultural and Related Services
Swale Borough Council,29UM,05/09/2018,1162010,7361.55,COLDWELL CONSTRUCTION LTD,4814340                  ,HOUSING SERVICES,Housing Renovation Grants,Not used in this Structure
Swale Borough Council,29UM,05/09/2018,1161852,1940.00,CONNECT CONSULTANTS LTD,6001923                  ,TOURISM & SPORTS DEVELOPMENT,Fees and Services,Trading Undertaking
Swale Borough Council,29UM,05/09/2018,1161853,6500.00,CUSHMAN & WAKEFIELD DEBENHAM T L LTD,2757768                  ,PROPERTY SERVICES,Fees and Services,Trading Undertaking
Swale Borough Council,29UM,05/09/2018,1162011,10345.00,DAYTRAD LIMITED,7654373                  ,HOUSING SERVICES,Housing Renovation Grants,Not used in this Structure
Swale Borough Council,29UM,05/09/2018,1161850,750.00,DIVERSITY HOUSE LIMITED,6188059                  ,TOURISM & SPORTS DEVELOPMENT,Grants & Subscriptions,Cultural and Related Services
Swale Borough Council,29UM,05/09/2018,1162012,5400.00,DOLPHIN STAIRLIFTS (KENT),04181846                 ,HOUSING SERVICES,Housing Renovation Grants,Not used in this Structure
Swale Borough Council,29UM,05/09/2018,1161761,520.00,ERGRO TECHNICAL SERVICES LTD,                         ,PROPERTY SERVICES,Equipment Purchase,Corporate & Democratic Core
Swale Borough Council,29UM,05/09/2018,1161998,500.00,FAVERSHAM LITERARY FESTIVAL,                         ,ECONOMY & COMMUNITIES,Grants & Subscriptions,Central Services to the Public
Swale Borough Council,29UM,05/09/2018,1161862,345.00,GEN2 PROPERTY LIMITED,09834851                 ,PROPERTY SERVICES,Consultancy/Specialist Advice,Internal Trading Cost Centres
Swale Borough Council,29UM,05/09/2018,1161796,833.38,GLASDON U.K.LIMITED,2160576                  ,SERVICE DELIVERY,Maintenance - Grounds,Cultural and Related Services
Swale Borough Council,29UM,05/09/2018,1161797,416.69,GLASDON U.K.LIMITED,2160576                  ,SERVICE DELIVERY,Maintenance - Grounds,Cultural and Related Services
Swale Borough Council,29UM,05/09/2018,1161851,960.00,GULLY HOWARD TECHNICAL,5128356                  ,PROPERTY SERVICES,Service Contracts,Corporate & Democratic Core
Swale Borough Council,29UM,05/09/2018,1161830,3500.00,HMCTS,                         ,CAR PARKS,Parking Adjudication Fees,Highway and Transport Services
Swale Borough Council,29UM,05/09/2018,1161830,3500.00,HMCTS,                         ,CAR PARKS,Parking Adjudication Fees,Highway and Transport Services
Swale Borough Council,29UM,05/09/2018,1162013,6300.00,HUBBARD & HOUGHTON CONSTRUCTION LTD,                         ,HOUSING SERVICES,Housing Renovation Grants,Not used in this Structure
Swale Borough Council,29UM,05/09/2018,1162014,6300.00,HUBBARD & HOUGHTON CONSTRUCTION LTD,                         ,HOUSING SERVICES,Housing Renovation Grants,Not used in this Structure
Swale Borough Council,29UM,05/09/2018,1161674,1550.00,KAREBEAR KENNELS LTD,                         ,ENVIRONMENTAL RESPONSE TEAM,Kennelling Of Dogs,Environmental and Regulatory Services
Swale Borough Council,29UM,05/09/2018,1161674,-425.00,KAREBEAR KENNELS LTD,                         ,ENVIRONMENTAL RESPONSE TEAM,Income collected by Dog Kennels,Environmental and Regulatory Services
Swale Borough Council,29UM,05/09/2018,1161495,549.32,KENT COUNTY COUNCIL (KCS),                         ,PROPERTY SERVICES,Gas,Corporate & Democratic Core
Swale Borough Council,29UM,05/09/2018,1161553,3271.52,KENT COUNTY COUNCIL (KCS),                         ,PROPERTY SERVICES,Electricity,Corporate & Democratic Core
Swale Borough Council,29UM,05/09/2018,1161516,6135.00,LESSHOMELESS LIMITED,08458851                 ,HOUSING SERVICES,NL (Nightly Lets) - Homelessness Landlord Payments,Housing
Swale Borough Council,29UM,05/09/2018,1161638,7655.00,LESSHOMELESS LIMITED,08458851                 ,HOUSING SERVICES,NL (Nightly Lets) - Homelessness Landlord Payments,Housing
Swale Borough Council,29UM,05/09/2018,1161961,8405.00,LESSHOMELESS LIMITED,08458851                 ,HOUSING SERVICES,NL (Nightly Lets) - Homelessness Landlord Payments,Housing
Swale Borough Council,29UM,05/09/2018,1161920,294.00,LYRECO UK LTD,                         ,PROPERTY SERVICES,Paper,Internal Trading Cost Centres
Swale Borough Council,29UM,05/09/2018,1161940,294.00,LYRECO UK LTD,                         ,PROPERTY SERVICES,Paper,Internal Trading Cost Centres
Swale Borough Council,29UM,05/09/2018,1161010,3502.00,MAGEES GUESTHOUSE,                         ,HOUSING SERVICES,B & B - Homelessness Landlord Payments,Housing
Swale Borough Council,29UM,05/09/2018,1161173,2636.00,MAGEES GUESTHOUSE,                         ,HOUSING SERVICES,B & B - Homelessness Landlord Payments,Housing
Swale Borough Council,29UM,05/09/2018,1161391,2636.00,MAGEES GUESTHOUSE,                         ,HOUSING SERVICES,B & B - Homelessness Landlord Payments,Housing
Swale Borough Council,29UM,05/09/2018,1161545,2430.00,MAGEES GUESTHOUSE,                         ,HOUSING SERVICES,B & B - Homelessness Landlord Payments,Housing
Swale Borough Council,29UM,05/09/2018,1161678,2293.00,MAGEES GUESTHOUSE,                         ,HOUSING SERVICES,B & B - Homelessness Landlord Payments,Housing
Swale Borough Council,29UM,05/09/2018,1161832,1808.00,MAGEES GUESTHOUSE,                         ,HOUSING SERVICES,B & B - Homelessness Landlord Payments,Housing
Swale Borough Council,29UM,05/09/2018,1161520,77936.62,MAIDSTONE BOROUGH COUNCIL,                         ,MKS ICT,Computer Equipment & Materials,Internal Trading Cost Centres
Swale Borough Council,29UM,05/09/2018,1161848,13828.41,MATRIX SCM LTD,2227962                  ,HUMAN RESOURCES,Agency/Contract Staff,Internal Trading Cost Centres
Swale Borough Council,29UM,05/09/2018,1161787,1825.00,MATTS MONITORS LTD,8501849                  ,MKS ENVIRONMENTAL SERVICES,Equipment Purchase,Environmental and Regulatory Services
Swale Borough Council,29UM,05/09/2018,1161895,1187.00,MAYLOW CONSTRUCTION LTD,                         ,LEISURE & OPEN SPACES,Maintenance - Grounds,Cultural and Related Services
Swale Borough Council,29UM,05/09/2018,1160813,1496.00,MEDWAY ACCOMMODATION LIMITED,                         ,HOUSING SERVICES,B & B - Homelessness Landlord Payments,Housing
Swale Borough Council,29UM,05/09/2018,1160813,311.67,MEDWAY ACCOMMODATION LIMITED,                         ,HOUSING SERVICES,B & B - Homelessness Landlord Payments,Housing
Swale Borough Council,29UM,05/09/2018,1161353,1672.00,MEDWAY ACCOMMODATION LIMITED,                         ,HOUSING SERVICES,B & B - Homelessness Landlord Payments,Housing
Swale Borough Council,29UM,05/09/2018,1161353,348.33,MEDWAY ACCOMMODATION LIMITED,                         ,HOUSING SERVICES,B & B - Homelessness Landlord Payments,Housing
Swale Borough Council,29UM,05/09/2018,1161493,352.50,MEDWAY ACCOMMODATION LIMITED,                         ,HOUSING SERVICES,B & B - Homelessness Landlord Payments,Housing
Swale Borough Council,29UM,05/09/2018,1161493,1692.00,MEDWAY ACCOMMODATION LIMITED,                         ,HOUSING SERVICES,B & B - Homelessness Landlord Payments,Housing
Swale Borough Council,29UM,05/09/2018,1161652,1484.00,MEDWAY ACCOMMODATION LIMITED,                         ,HOUSING SERVICES,B & B - Homelessness Landlord Payments,Housing
Swale Borough Council,29UM,05/09/2018,1161652,309.17,MEDWAY ACCOMMODATION LIMITED,                         ,HOUSING SERVICES,B & B - Homelessness Landlord Payments,Housing
Swale Borough Council,29UM,05/09/2018,1161915,635.00,METRIC GROUP LTD,2560839                  ,CAR PARKS,Fees - Licence,Highway and Transport Services
Swale Borough Council,29UM,05/09/2018,1161777,1578.00,MIDLAND SOFTWARE LTD (DT),1852206                  ,HUMAN RESOURCES,Computer Equipment & Materials,Internal Trading Cost Centres
Swale Borough Council,29UM,05/09/2018,1161905,300.00,MR J W GATES,                         ,SERVICE DELIVERY,Maintenance - Grounds,Cultural and Related Services
Swale Borough Council,29UM,05/09/2018,1161905,200.00,MR J W GATES,                         ,SERVICE DELIVERY,Maintenance - Grounds,Cultural and Related Services
Swale Borough Council,29UM,05/09/2018,1161905,100.00,MR J W GATES,                         ,SERVICE DELIVERY,Maintenance - Grounds,Cultural and Related Services
Swale Borough Council,29UM,05/09/2018,1161359,476.55,NEW LEAF SUPPORT LTD,                         ,HOUSING SERVICES,NL (Nightly Lets) - Homelessness Landlord Payments,Housing
Swale Borough Council,29UM,05/09/2018,1161970,582.45,NEW LEAF SUPPORT LTD,                         ,HOUSING SERVICES,NL (Nightly Lets) - Homelessness Landlord Payments,Housing
Swale Borough Council,29UM,05/09/2018,1161941,1114.58,OBSIDIAN SECURITY LTD,                         ,PROPERTY SERVICES,Equipment Purchase,Corporate & Democratic Core
Swale Borough Council,29UM,05/09/2018,1161810,2086.00,REARDON PROPERTIES,                         ,HOUSING SERVICES,NL (Nightly Lets) - Homelessness Landlord Payments,Housing
Swale Borough Council,29UM,05/09/2018,1161811,1974.00,REARDON PROPERTIES,                         ,HOUSING SERVICES,NL (Nightly Lets) - Homelessness Landlord Payments,Housing
Swale Borough Council,29UM,05/09/2018,1161967,792.00,REGENT GUEST HOUSE LTD,06537084                 ,HOUSING SERVICES,B & B - Homelessness Landlord Payments,Housing
Swale Borough Council,29UM,05/09/2018,1161968,560.00,REGENT GUEST HOUSE LTD,06537084                 ,HOUSING SERVICES,B & B - Homelessness Landlord Payments,Housing
Swale Borough Council,29UM,05/09/2018,1161758,295.00,REVIVE & THRIVE LTD,08669548                 ,ECONOMIC DEVELOPMENT,Fees and Services,Planning and Development Services
Swale Borough Council,29UM,05/09/2018,1161819,1102.31,ROYAL MAIL GROUP LTD,4138203                  ,PROPERTY SERVICES,Postage,Holding Codes
Swale Borough Council,29UM,05/09/2018,1161969,375.00,RURAL PLANNING LTD,4426249                  ,PLANNING SERVICES,Fees and Services,Planning and Development Services
Swale Borough Council,29UM,05/09/2018,1161502,478.30,SCOTTISH WATER BUSINESS STREAM LTD,SC294924                 ,PROPERTY SERVICES,Water - Metered,Corporate & Democratic Core
Swale Borough Council,29UM,05/09/2018,1161502,797.93,SCOTTISH WATER BUSINESS STREAM LTD,SC294924                 ,PROPERTY SERVICES,Water - Metered,Corporate & Democratic Core
Swale Borough Council,29UM,05/09/2018,1161581,1244.35,SCOTTISH WATER BUSINESS STREAM LTD,SC294924                 ,CONTRACT & PROCUREMENT,Water - Metered,Environmental and Regulatory Services
Swale Borough Council,29UM,05/09/2018,1161676,1148.30,SCOTTISH WATER BUSINESS STREAM LTD,SC294924                 ,CONTRACT & PROCUREMENT,Water - Metered,Environmental and Regulatory Services
Swale Borough Council,29UM,05/09/2018,1161804,469.41,SCOTTISH WATER BUSINESS STREAM LTD,SC294924                 ,CONTRACT & PROCUREMENT,Water - Metered,Environmental and Regulatory Services
Swale Borough Council,29UM,05/09/2018,1161828,526.76,SCOTTISH WATER BUSINESS STREAM LTD,SC294924                 ,CONTRACT & PROCUREMENT,Water - Metered,Environmental and Regulatory Services
Swale Borough Council,29UM,05/09/2018,1161829,675.40,SCOTTISH WATER BUSINESS STREAM LTD,SC294924                 ,SERVICE DELIVERY,Water - Metered,Cultural and Related Services
Swale Borough Council,29UM,05/09/2018,1161903,1661.98,SCOTTISH WATER BUSINESS STREAM LTD,SC294924                 ,CONTRACT & PROCUREMENT,Water - Metered,Environmental and Regulatory Services
Swale Borough Council,29UM,05/09/2018,1161896,1672.50,TECO INTERIORS LTD,                         ,PROPERTY SERVICES,Buildings Maintenance,Corporate & Democratic Core
Swale Borough Council,29UM,05/09/2018,1161897,3424.30,TECO INTERIORS LTD,                         ,PROPERTY SERVICES,Non-Planned Building Maintenance,Corporate & Democratic Core
Swale Borough Council,29UM,05/09/2018,1161743,1425.00,THE OYSTER PARTNERSHIP,05020374                 ,PLANNING SERVICES,Agency/Contract Staff,Planning and Development Services
Swale Borough Council,29UM,05/09/2018,1161855,1425.00,THE OYSTER PARTNERSHIP,05020374                 ,PLANNING SERVICES,Agency/Contract Staff,Planning and Development Services
Swale Borough Council,29UM,05/09/2018,1161614,1030.00,TOTAL MERCHANDISE LTD,05221288                 ,CONTRACT & PROCUREMENT,Waste and Recycling Promotion / Comm's Projects,Environmental and Regulatory Services
Swale Borough Council,29UM,05/09/2018,1161788,4000.00,TUNBRIDGE WELLS BOROUGH COUNCIL,                         ,HOUSING SERVICES,Consultancy/Specialist Advice,Housing
Swale Borough Council,29UM,05/09/2018,1161884,490.00,TUNBRIDGE WELLS BOROUGH COUNCIL,                         ,MKS ICT,Telephone,Corporate & Democratic Core
Swale Borough Council,29UM,05/09/2018,1161734,-33.97,UNISON,                         ,HUMAN RESOURCES,Payroll - Unison Deductions Admin Charge,Corporate & Democratic Core
Swale Borough Council,29UM,05/09/2018,1161863,350.52,VANITORIALS LIMITED,3952938                  ,PROPERTY SERVICES,Cleaning Materials,Internal Trading Cost Centres
Swale Borough Council,29UM,05/09/2018,1161617,12500.00,VIVID RESOURCING LIMITED,06459262                 ,PLANNING SERVICES,Agency/Contract Staff,Internal Trading Cost Centres
Swale Borough Council,29UM,05/09/2018,1161999,632.90,WEST FAVERSHAM COMMUNITY ASSOCIATION,                         ,TOURISM & SPORTS DEVELOPMENT,Grants & Subscriptions,Cultural and Related Services
Swale Borough Council,29UM,05/09/2018,1161682,447.30,WHISTL UK LIMITED,04417047                 ,REVENUE SERVICES,Postage,Central Services to the Public
Swale Borough Council,29UM,05/09/2018,1161682,223.65,WHISTL UK LIMITED,04417047                 ,REVENUE SERVICES,Postage,Housing
Swale Borough Council,29UM,05/09/2018,1161682,16.00,WHISTL UK LIMITED,04417047                 ,CAR PARKS,Postage,Internal Trading Cost Centres
Swale Borough Council,29UM,05/09/2018,1161682,146.98,WHISTL UK LIMITED,04417047                 ,PROPERTY SERVICES,Postage,Holding Codes
Swale Borough Council,29UM,05/09/2018,1161682,48.71,WHISTL UK LIMITED,04417047                 ,DEMOCRATIC & ELECTORAL SERVICES,Postage,Central Services to the Public
Swale Borough Council,29UM,05/09/2018,1161845,427.46,WHISTL UK LIMITED,04417047                 ,REVENUE SERVICES,Postage,Central Services to the Public
Swale Borough Council,29UM,05/09/2018,1161845,213.72,WHISTL UK LIMITED,04417047                 ,REVENUE SERVICES,Postage,Housing
Swale Borough Council,29UM,05/09/2018,1161845,23.85,WHISTL UK LIMITED,04417047                 ,CAR PARKS,Postage,Internal Trading Cost Centres
Swale Borough Council,29UM,05/09/2018,1161845,61.29,WHISTL UK LIMITED,04417047                 ,PROPERTY SERVICES,Postage,Holding Codes
Swale Borough Council,29UM,05/09/2018,1161845,184.58,WHISTL UK LIMITED,04417047                 ,DEMOCRATIC & ELECTORAL SERVICES,Postage,Central Services to the Public
Swale Borough Council,29UM,05/09/2018,1161104,-307.64,WILLOW TREE HOME SOLUTIONS LTD,                         ,HOUSING SERVICES,DFG Fee Income,Housing
Swale Borough Council,29UM,05/09/2018,1161650,420.00,WILLOW TREE HOME SOLUTIONS LTD,                         ,HOUSING SERVICES,Staying Put small repairs (contractors),Housing
Swale Borough Council,29UM,05/09/2018,1161887,300.00,WILLOW TREE HOME SOLUTIONS LTD,                         ,HOUSING SERVICES,Staying Put small repairs (contractors),Housing
Swale Borough Council,29UM,12/09/2018,1162139,3289.36,ACORN MAINTENANCE SERVICES,3546898                  ,HOUSING SERVICES,Housing Renovation Grants,Not used in this Structure
Swale Borough Council,29UM,12/09/2018,1162071,2709.32,ALLPAY LTD,02933191                 ,REVENUE SERVICES,Bank Charges Pay Point,Central Services to the Public
Swale Borough Council,29UM,12/09/2018,1162071,29.45,ALLPAY LTD,02933191                 ,REVENUE SERVICES,Bank Charges Pay Point,Housing
Swale Borough Council,29UM,12/09/2018,1162071,27.15,ALLPAY LTD,02933191                 ,EXCHEQUER,Bank Charges Pay Point,Internal Trading Cost Centres
Swale Borough Council,29UM,12/09/2018,1161910,18000.00,ARLINGCLOSE LTD,2853836                  ,FINANCIAL SERVICES,Consultancy/Specialist Advice,Corporate & Democratic Core
Swale Borough Council,29UM,12/09/2018,1161839,271.42,BLENWOOD LTD,4383277                  ,LEISURE & OPEN SPACES,Maintenance - Grounds,Environmental and Regulatory Services
Swale Borough Council,29UM,12/09/2018,1161842,1680.00,BLENWOOD LTD,4383277                  ,LEISURE & OPEN SPACES,Maintenance - Grounds,Environmental and Regulatory Services
Swale Borough Council,29UM,12/09/2018,1162065,17526.10,BLOOM PROCUREMENT SERVICES LTD,08045123                 ,PLANNING SERVICES,Fees and Services,Planning and Development Services
Swale Borough Council,29UM,12/09/2018,1162045,4618.62,BROADWAY ESTATES,                         ,REVENUE SERVICES,Fees and Services,Housing
Swale Borough Council,29UM,12/09/2018,1162073,1246.00,BROADWAY ESTATES,                         ,REVENUE SERVICES,Fees and Services,Housing
Swale Borough Council,29UM,12/09/2018,1162033,2404.80,CLEAR CHANNEL UK LTD,                         ,TOURISM & SPORTS DEVELOPMENT,Fees and Services,Trading Undertaking
Swale Borough Council,29UM,12/09/2018,1161901,3187.58,COMMERCIAL SERVICES KENT LTD,5858177                  ,ENVIRONMENTAL RESPONSE TEAM,Hire & Leases,Internal Trading Cost Centres
Swale Borough Council,29UM,12/09/2018,1161978,3344.10,COMMERCIAL SERVICES TRADING LTD,5858178                  ,ENVIRONMENTAL RESPONSE TEAM,Hire & Leases,Internal Trading Cost Centres
Swale Borough Council,29UM,12/09/2018,1161979,2559.84,COMMERCIAL SERVICES TRADING LTD,5858178                  ,LEISURE & OPEN SPACES,Hire & Leases,Cultural and Related Services
Swale Borough Council,29UM,12/09/2018,1161980,3088.02,COMMERCIAL SERVICES TRADING LTD,5858178                  ,ENVIRONMENTAL RESPONSE TEAM,Hire & Leases,Internal Trading Cost Centres
Swale Borough Council,29UM,12/09/2018,1161981,3088.02,COMMERCIAL SERVICES TRADING LTD,5858178                  ,ENVIRONMENTAL RESPONSE TEAM,Hire & Leases,Environmental and Regulatory Services
Swale Borough Council,29UM,12/09/2018,1161982,2559.84,COMMERCIAL SERVICES TRADING LTD,5858178                  ,ENVIRONMENTAL RESPONSE TEAM,Hire & Leases,Internal Trading Cost Centres
Swale Borough Council,29UM,12/09/2018,1161333,2450.00,CROFTON DESIGN (KENT) LTD,4081318                  ,PROPERTY SERVICES,Consultancy/Specialist Advice,Internal Trading Cost Centres
Swale Borough Council,29UM,12/09/2018,1162146,6553.20,DAYTRAD LIMITED,7654373                  ,HOUSING SERVICES,Housing Renovation Grants,Not used in this Structure
Swale Borough Council,29UM,12/09/2018,1162009,53.88,DCB (KENT) LIMITED,03532339                 ,COMMUNITY SAFETY,Non-Planned Building Maintenance,Cultural and Related Services
Swale Borough Council,29UM,12/09/2018,1162009,21.50,DCB (KENT) LIMITED,03532339                 ,PROPERTY SERVICES,Non-Planned Building Maintenance,Cultural and Related Services
Swale Borough Council,29UM,12/09/2018,1162009,66.29,DCB (KENT) LIMITED,03532339                 ,PROPERTY SERVICES,Non-Planned Building Maintenance,Corporate & Democratic Core
Swale Borough Council,29UM,12/09/2018,1162009,45.00,DCB (KENT) LIMITED,03532339                 ,PROPERTY SERVICES,Non-Planned Building Maintenance,Corporate & Democratic Core
Swale Borough Council,29UM,12/09/2018,1162009,21.50,DCB (KENT) LIMITED,03532339                 ,PROPERTY SERVICES,Non-Planned Building Maintenance,Corporate & Democratic Core
Swale Borough Council,29UM,12/09/2018,1162009,23.84,DCB (KENT) LIMITED,03532339                 ,PROPERTY SERVICES,Non-Planned Building Maintenance,Corporate & Democratic Core
Swale Borough Council,29UM,12/09/2018,1162009,64.00,DCB (KENT) LIMITED,03532339                 ,PROPERTY SERVICES,Non-Planned Building Maintenance,Corporate & Democratic Core
Swale Borough Council,29UM,12/09/2018,1162009,93.74,DCB (KENT) LIMITED,03532339                 ,CONTRACT & PROCUREMENT,Non-Planned Building Maintenance,Environmental and Regulatory Services
Swale Borough Council,29UM,12/09/2018,1162009,44.00,DCB (KENT) LIMITED,03532339                 ,CONTRACT & PROCUREMENT,Non-Planned Building Maintenance,Environmental and Regulatory Services
Swale Borough Council,29UM,12/09/2018,1162009,25.98,DCB (KENT) LIMITED,03532339                 ,CONTRACT & PROCUREMENT,Non-Planned Building Maintenance,Environmental and Regulatory Services
Swale Borough Council,29UM,12/09/2018,1162003,880.00,DISCLOSURE & BARRING SERVICE (DT),                         ,LICENCING,Fees and Services,Environmental and Regulatory Services
Swale Borough Council,29UM,12/09/2018,1162140,270.00,DOLPHIN STAIRLIFTS (KENT),04181846                 ,HOUSING SERVICES,Housing Renovation Grants,Not used in this Structure
Swale Borough Council,29UM,12/09/2018,1162050,271.05,ESTATES GAZETTE,151537                   ,PROPERTY SERVICES,"Books, Journals & e - resources",Internal Trading Cost Centres
Swale Borough Council,29UM,12/09/2018,1162050,135.64,ESTATES GAZETTE,151537                   ,PROPERTY SERVICES,"Books, Journals & e - resources",Internal Trading Cost Centres
Swale Borough Council,29UM,12/09/2018,1162068,750.00,FAVERSHAM TOWN COUNCIL,                         ,TOURISM & SPORTS DEVELOPMENT,Grants & Subscriptions,Cultural and Related Services
Swale Borough Council,29UM,12/09/2018,1162062,2325.00,FIRST STOP HOUSING SOLUTION LTD,                         ,HOUSING SERVICES,NL (Nightly Lets) - Homelessness Landlord Payments,Housing
Swale Borough Council,29UM,12/09/2018,1161948,1718.75,GRAHAM BOULDEN & COMPANY,                         ,CAR PARKS,Rent,Highway and Transport Services
Swale Borough Council,29UM,12/09/2018,1161963,419.58,GRAHAMS AUTO REPAIRS,04766184                 ,ENVIRONMENTAL RESPONSE TEAM,Other Vehicle Expenses,Internal Trading Cost Centres
Swale Borough Council,29UM,12/09/2018,1161883,250.00,HAYMARKET MEDIA GROUP LTD,                         ,MKS LEGAL SERVICES,"Books, Journals & e - resources",Internal Trading Cost Centres
Swale Borough Council,29UM,12/09/2018,1162142,2638.85,HIGHER ELEVATION LTD,4078005                  ,HOUSING SERVICES,Housing Renovation Grants,Not used in this Structure
Swale Borough Council,29UM,12/09/2018,1162016,2640.00,HMCTS (DT),                         ,REVENUE SERVICES,Court Costs,Central Services to the Public
Swale Borough Council,29UM,12/09/2018,1162141,6562.80,HUBBARD & HOUGHTON CONSTRUCTION LTD,                         ,HOUSING SERVICES,Housing Renovation Grants,Not used in this Structure
Swale Borough Council,29UM,12/09/2018,1161907,7600.00,INFORM CPI LTD,                         ,REVENUE SERVICES,NNDR Additional Rateable Values,Central Services to the Public
Swale Borough Council,29UM,12/09/2018,1161975,4000.00,INFORM CPI LTD,                         ,REVENUE SERVICES,NNDR Additional Rateable Values,Central Services to the Public
Swale Borough Council,29UM,12/09/2018,1162052,6878.00,KINGDOM SECURITY LIMITED,2795197                  ,ENVIRONMENTAL RESPONSE TEAM,Fees and Services,Planning and Development Services
Swale Borough Council,29UM,12/09/2018,1161241,23660.00,LINK PROPERTY GROUP,                         ,HOUSING SERVICES,NL (Nightly Lets) - Homelessness Landlord Payments,Housing
Swale Borough Council,29UM,12/09/2018,1161962,25424.00,LINK PROPERTY GROUP,                         ,HOUSING SERVICES,NL (Nightly Lets) - Homelessness Landlord Payments,Housing
Swale Borough Council,29UM,12/09/2018,1162076,1260.00,LUSHLAND,4289261                  ,PLANNING SERVICES,Fees and Services,Planning and Development Services
Swale Borough Council,29UM,12/09/2018,1161996,2134.00,MAGEES GUESTHOUSE,                         ,HOUSING SERVICES,B & B - Homelessness Landlord Payments,Housing
Swale Borough Council,29UM,12/09/2018,1161809,73754.43,MAIDSTONE BOROUGH COUNCIL,                         ,CONTRACT & PROCUREMENT,Private Contractors,Environmental and Regulatory Services
Swale Borough Council,29UM,12/09/2018,1161809,201020.39,MAIDSTONE BOROUGH COUNCIL,                         ,CONTRACT & PROCUREMENT,Private Contractors,Environmental and Regulatory Services
Swale Borough Council,29UM,12/09/2018,1161792,1564.00,MEDWAY ACCOMMODATION LIMITED,                         ,HOUSING SERVICES,B & B - Homelessness Landlord Payments,Housing
Swale Borough Council,29UM,12/09/2018,1161792,325.83,MEDWAY ACCOMMODATION LIMITED,                         ,HOUSING SERVICES,B & B - Homelessness Landlord Payments,Housing
Swale Borough Council,29UM,12/09/2018,1161950,1520.00,MEDWAY ACCOMMODATION LIMITED,                         ,HOUSING SERVICES,B & B - Homelessness Landlord Payments,Housing
Swale Borough Council,29UM,12/09/2018,1161950,316.67,MEDWAY ACCOMMODATION LIMITED,                         ,HOUSING SERVICES,B & B - Homelessness Landlord Payments,Housing
Swale Borough Council,29UM,12/09/2018,1162084,432.30,REDACTED PERSONAL INFORMATION,                         ,PLANNING SERVICES,Fees and Services,Planning and Development Services
Swale Borough Council,29UM,12/09/2018,1161949,1196.00,REDACTED PERSONAL INFORMATION,                         ,HOUSING SERVICES,B & B - Homelessness Landlord Payments,Housing
Swale Borough Council,29UM,12/09/2018,1161951,1211.00,REDACTED PERSONAL INFORMATION,                         ,HOUSING SERVICES,B & B - Homelessness Landlord Payments,Housing
Swale Borough Council,29UM,12/09/2018,1162042,414.69,OASIS LADIES COMMUNITY FOOTBALL CLUB,                         ,TOURISM & SPORTS DEVELOPMENT,Grants & Subscriptions,Cultural and Related Services
Swale Borough Council,29UM,12/09/2018,1161992,3412.50,P BINNIE CONSULTANCY LTD,07794784                 ,ECONOMIC DEVELOPMENT,Consultancy/Specialist Advice,Planning and Development Services
Swale Borough Council,29UM,12/09/2018,1161965,290.33,PORTAKABIN LIMITED,685303                   ,LEISURE & OPEN SPACES,Maintenance - Grounds,Environmental and Regulatory Services
Swale Borough Council,29UM,12/09/2018,1162057,666.85,POSTURITE LTD,                         ,PLANNING SERVICES,Furniture,Internal Trading Cost Centres
Swale Borough Council,29UM,12/09/2018,1161952,1370.03,PREMIER INN (ATOS) DT,                         ,HOUSING SERVICES,B & B - Homelessness Landlord Payments,Housing
Swale Borough Council,29UM,12/09/2018,1161812,2072.00,REARDON PROPERTIES,                         ,HOUSING SERVICES,NL (Nightly Lets) - Homelessness Landlord Payments,Housing
Swale Borough Council,29UM,12/09/2018,1162041,500.00,SITTINGBOURNE ORPHEUS CHORAL SOCIETY,                         ,ECONOMY & COMMUNITIES,Grants & Subscriptions,Central Services to the Public
Swale Borough Council,29UM,12/09/2018,1162080,450.00,SKYE INSTRUMENTS LTD,1705412                  ,MKS ENVIRONMENTAL SERVICES,Equipment Maintenance,Environmental and Regulatory Services
Swale Borough Council,29UM,12/09/2018,1162060,487.16,SKYGUARD LTD,                         ,HEALTH & SAFETY,Computer Equipment & Materials,Corporate & Democratic Core
Swale Borough Council,29UM,12/09/2018,1162064,27.71,SODEXO MOTIVATION SOLUTIONS UK LTD,2680629                  ,HUMAN RESOURCES,Fees and Services,Corporate & Democratic Core
Swale Borough Council,29UM,12/09/2018,1162147,12495.04,SOUTH EAST BUILDING CO LTD,1786838                  ,HOUSING SERVICES,Housing Renovation Grants,Not used in this Structure
Swale Borough Council,29UM,12/09/2018,1162148,6512.00,SOUTH EAST BUILDING CO LTD,1786838                  ,HOUSING SERVICES,Housing Renovation Grants,Not used in this Structure
Swale Borough Council,29UM,12/09/2018,1162085,5700.00,ST MICHAEL'S GARAGE (KENT) LIMITED,                         ,FINANCIAL SERVICES,Payments in Year,Ledger/Suspense Codes
Swale Borough Council,29UM,12/09/2018,1162034,2077.12,SWALE COMMUNITY LEISURE LTD,                         ,LEISURE & OPEN SPACES,Fees and Services,Cultural and Related Services
Swale Borough Council,29UM,12/09/2018,1162077,10000.00,SWECO UK LTD,2888385                  ,PLANNING SERVICES,Fees and Services,Planning and Development Services
Swale Borough Council,29UM,12/09/2018,1162008,1250.00,THE CO-OPERATIVE FUNERALCARE,30808R                   ,MKS ENVIRONMENTAL SERVICES,Funeral Expenses,Environmental and Regulatory Services
Swale Borough Council,29UM,12/09/2018,1162048,1387.00,THE OYSTER PARTNERSHIP,05020374                 ,PLANNING SERVICES,Agency/Contract Staff,Planning and Development Services
Swale Borough Council,29UM,12/09/2018,1162149,4687.00,TPS BUILDING SERVICES,                         ,HOUSING SERVICES,Housing Renovation Grants,Not used in this Structure
Swale Borough Council,29UM,12/09/2018,1161669,1413.00,TRAFALGAR TAVERN LTD,07999329                 ,HOUSING SERVICES,B & B - Homelessness Landlord Payments,Housing
Swale Borough Council,29UM,12/09/2018,1161793,1533.00,TRAFALGAR TAVERN LTD,07999329                 ,HOUSING SERVICES,B & B - Homelessness Landlord Payments,Housing
Swale Borough Council,29UM,12/09/2018,1161976,1461.00,TRAFALGAR TAVERN LTD,07999329                 ,HOUSING SERVICES,B & B - Homelessness Landlord Payments,Housing
Swale Borough Council,29UM,12/09/2018,1162067,1533.00,TRAFALGAR TAVERN LTD,07999329                 ,HOUSING SERVICES,B & B - Homelessness Landlord Payments,Housing
Swale Borough Council,29UM,12/09/2018,1162001,851.06,TRIBUNE GRAPHICS LTD,                         ,LEISURE & OPEN SPACES,Maintenance - Grounds,Cultural and Related Services
Swale Borough Council,29UM,12/09/2018,1161634,255.37,WESTBURY SIGNS LTD,6523147                  ,COMMISSIONING & CUSTOMER CONTACT,Signage - External Funded by Grant & Other Income,Internal Trading Cost Centres
Swale Borough Council,29UM,12/09/2018,1162006,312.52,WHISTL UK LIMITED,04417047                 ,REVENUE SERVICES,Postage,Central Services to the Public
Swale Borough Council,29UM,12/09/2018,1162006,156.26,WHISTL UK LIMITED,04417047                 ,REVENUE SERVICES,Postage,Housing
Swale Borough Council,29UM,12/09/2018,1162006,24.52,WHISTL UK LIMITED,04417047                 ,CAR PARKS,Postage,Internal Trading Cost Centres
Swale Borough Council,29UM,12/09/2018,1162006,22.23,WHISTL UK LIMITED,04417047                 ,PROPERTY SERVICES,Postage,Holding Codes
Swale Borough Council,29UM,12/09/2018,1162006,290.97,WHISTL UK LIMITED,04417047                 ,DEMOCRATIC & ELECTORAL SERVICES,Postage,Central Services to the Public
Swale Borough Council,29UM,12/09/2018,1162145,6166.92,WILLOW TREE HOME SOLUTIONS LTD,                         ,HOUSING SERVICES,Housing Renovation Grants,Not used in this Structure
Swale Borough Council,29UM,12/09/2018,1161698,394.99,WYBONE LTD,952455                   ,LEISURE & OPEN SPACES,Equipment Purchase,Cultural and Related Services
Swale Borough Council,29UM,19/09/2018,1162150,250.00,A1 EVENT SERVICES,                         ,LEISURE & OPEN SPACES,Equipment Purchase,Cultural and Related Services
Swale Borough Council,29UM,19/09/2018,1162226,250.00,ALCIUM SOFTWARE LIMITED,4157769                  ,ECONOMIC DEVELOPMENT,Fees and Services,Planning and Development Services
Swale Borough Council,29UM,19/09/2018,1161954,41.47,ALLSTAR BUSINESS SOLUTIONS LTD - (DT),1073098                  ,DEMOCRATIC & ELECTORAL SERVICES,Petrol/Derv & Oil,Corporate & Democratic Core
Swale Borough Council,29UM,19/09/2018,1161954,134.10,ALLSTAR BUSINESS SOLUTIONS LTD - (DT),1073098                  ,SERVICE DELIVERY,Petrol/Derv & Oil,Cultural and Related Services
Swale Borough Council,29UM,19/09/2018,1161954,370.43,ALLSTAR BUSINESS SOLUTIONS LTD - (DT),1073098                  ,ENVIRONMENTAL RESPONSE TEAM,Fuel For Contract Vehicles,Internal Trading Cost Centres
Swale Borough Council,29UM,19/09/2018,1161954,57.48,ALLSTAR BUSINESS SOLUTIONS LTD - (DT),1073098                  ,ENVIRONMENTAL RESPONSE TEAM,Fuel For Contract Vehicles,Environmental and Regulatory Services
Swale Borough Council,29UM,19/09/2018,1162119,1050.00,APERIS BUILDING CONSULTANCY LTD,07809284                 ,FINANCIAL SERVICES,STC - Capitalised Fees And Charges,Not used in this Structure
Swale Borough Council,29UM,19/09/2018,1162232,300.00,ASPIRATIONS,                         ,ECONOMY & COMMUNITIES,Grants & Subscriptions,Central Services to the Public
Swale Borough Council,29UM,19/09/2018,1161840,1266.15,BLENWOOD LTD,4383277                  ,LEISURE & OPEN SPACES,Tree Maintenance,Cultural and Related Services
Swale Borough Council,29UM,19/09/2018,1161857,102846.35,BLENWOOD LTD,4383277                  ,LEISURE & OPEN SPACES,Grounds Maint Suspense,Cultural and Related Services
Swale Borough Council,29UM,19/09/2018,1161983,1714.33,BLENWOOD LTD,4383277                  ,LEISURE & OPEN SPACES,Maintenance - Grounds Contract,Cultural and Related Services
Swale Borough Council,29UM,19/09/2018,1162157,2185.20,BLENWOOD LTD,4383277                  ,LEISURE & OPEN SPACES,Maintenance - Grounds,Cultural and Related Services
Swale Borough Council,29UM,19/09/2018,1162159,3200.67,BLENWOOD LTD,4383277                  ,LEISURE & OPEN SPACES,Grounds Maint Suspense,Cultural and Related Services
Swale Borough Council,29UM,19/09/2018,1161854,1750.00,BLOOM PROCUREMENT SERVICES LTD,08045123                 ,FINANCIAL SERVICES,STC - Capitalised Fees And Charges,Not used in this Structure
Swale Borough Council,29UM,19/09/2018,1161854,1750.00,BLOOM PROCUREMENT SERVICES LTD,08045123                 ,FINANCIAL SERVICES,STC - Capitalised Fees And Charges,Not used in this Structure
Swale Borough Council,29UM,19/09/2018,1162215,12805.00,BLOOM PROCUREMENT SERVICES LTD,08045123                 ,PLANNING SERVICES,Fees and Services,Planning and Development Services
Swale Borough Council,29UM,19/09/2018,1162129,601.50,BRITISH TELECOM PLC,1800000                  ,MKS ICT,Telephone,Corporate & Democratic Core
Swale Borough Council,29UM,19/09/2018,1162251,3333.33,CHALKWELL COACH HIRE LTD,2520842                  ,PLANNING SERVICES,Payments in Year,Ledger/Suspense Codes
Swale Borough Council,29UM,19/09/2018,1162035,4207.83,COBALT TELEPHONE TECHNOLOGIES LIMITED,03151938                 ,CAR PARKS,Fees - Licence,Highway and Transport Services
Swale Borough Council,29UM,19/09/2018,1162123,1000.00,COHESION PLUS KENT,6924474                  ,TOURISM & SPORTS DEVELOPMENT,Grants & Subscriptions,Cultural and Related Services
Swale Borough Council,29UM,19/09/2018,1162125,500.00,COHESION PLUS KENT,6924474                  ,ECONOMY & COMMUNITIES,Grants & Subscriptions,Central Services to the Public
Swale Borough Council,29UM,19/09/2018,1162083,3760.77,CONTRACT SECURITY SERVICES,2461362                  ,CAR PARKS,Cash Security,Highway and Transport Services
Swale Borough Council,29UM,19/09/2018,1162089,42500.00,DTZ TESCO STORES THE FORUM (RENT),                         ,CAR PARKS,Rent,Highway and Transport Services
Swale Borough Council,29UM,19/09/2018,1162089,8500.00,DTZ TESCO STORES THE FORUM (RENT),                         ,CAR PARKS,Rent,Highway and Transport Services
Swale Borough Council,29UM,19/09/2018,1162086,1198.06,DX NETWORK SERVICES LIMITED,5026914                  ,MKS LEGAL SERVICES,Postage,Internal Trading Cost Centres
Swale Borough Council,29UM,19/09/2018,1162346,22500.00,EMPLOYMENT LAW UK LIMITED (DT),                         ,DIRECTOR OF CORPORATE SERVICES,Fees and Services,Corporate & Democratic Core
Swale Borough Council,29UM,19/09/2018,1162130,1750.00,FAVERSHAM TOWN COUNCIL,                         ,ECONOMY & COMMUNITIES,Grants & Subscriptions,Central Services to the Public
Swale Borough Council,29UM,19/09/2018,1162104,326.90,FOUNDRY CHAMBERS,                         ,PLANNING SERVICES,Legal Fees,Internal Trading Cost Centres
Swale Borough Council,29UM,19/09/2018,1162104,65.38,FOUNDRY CHAMBERS,                         ,PLANNING SERVICES,Legal Fees,Internal Trading Cost Centres
Swale Borough Council,29UM,19/09/2018,1161762,2280.00,GRESHAM OFFICE FURNITURE LTD,1284733                  ,PROPERTY SERVICES,Equipment Purchase,Corporate & Democratic Core
Swale Borough Council,29UM,19/09/2018,1162301,400.00,HOLY TRINITY MILTON REGIS BELL RINGERS,                         ,ECONOMY & COMMUNITIES,Grants & Subscriptions,Central Services to the Public
Swale Borough Council,29UM,19/09/2018,1162344,356225.66,HUBER CAR PARK SYST INTL GMBH (DT),                         ,FINANCIAL SERVICES,STC - Capitalised Fees And Charges,Not used in this Structure
Swale Borough Council,29UM,19/09/2018,1162295,6000.00,IAN SAYER & Co,                         ,FINANCIAL SERVICES,STC - Capitalised Fees And Charges,Not used in this Structure
Swale Borough Council,29UM,19/09/2018,1162059,1812.50,INVVU CONSTRUCTION CONSULTANTS LTD,10967367                 ,PLANNING SERVICES,Payments in Year,Ledger/Suspense Codes
Swale Borough Council,29UM,19/09/2018,1162136,1200.00,IVY LEGAL LIMITED,8408137                  ,PLANNING SERVICES,Legal Fees,Internal Trading Cost Centres
Swale Borough Council,29UM,19/09/2018,1162114,3120.00,REDACTED PERSONAL INFORMATION,                         ,HOUSING SERVICES,LIS - Landlord Payments (new in 2018),Housing
Swale Borough Council,29UM,19/09/2018,1162256,1000.00,KENT COUNTY COUNCIL,                         ,LEISURE & OPEN SPACES,Grants & Subscriptions,Cultural and Related Services
Swale Borough Council,29UM,19/09/2018,1162256,10000.00,KENT COUNTY COUNCIL,                         ,LEISURE & OPEN SPACES,Grants & Subscriptions,Cultural and Related Services
Swale Borough Council,29UM,19/09/2018,1162257,5000.00,KENT COUNTY COUNCIL,                         ,LEISURE & OPEN SPACES,Construction,Not used in this Structure
Swale Borough Council,29UM,19/09/2018,1162219,3211.76,KENT COUNTY COUNCIL (KCS),                         ,PROPERTY SERVICES,Electricity,Corporate & Democratic Core
Swale Borough Council,29UM,19/09/2018,1162246,549.32,KENT COUNTY COUNCIL (KCS),                         ,PROPERTY SERVICES,Gas,Corporate & Democratic Core
Swale Borough Council,29UM,19/09/2018,1162352,21.00,LAND REGISTRY - (DT),                         ,TOURISM & SPORTS DEVELOPMENT,Fees - Land Registry,Cultural and Related Services
Swale Borough Council,29UM,19/09/2018,1162352,6.00,LAND REGISTRY - (DT),                         ,COMMUNITY SAFETY,Fees - Land Registry,Environmental and Regulatory Services
Swale Borough Council,29UM,19/09/2018,1162352,511.00,LAND REGISTRY - (DT),                         ,PROPERTY SERVICES,Fees - Land Registry,Trading Undertaking
Swale Borough Council,29UM,19/09/2018,1162352,962.00,LAND REGISTRY - (DT),                         ,REVENUE SERVICES,Fees - Land Registry,Central Services to the Public
Swale Borough Council,29UM,19/09/2018,1162352,202.00,LAND REGISTRY - (DT),                         ,PLANNING SERVICES,Fees - Land Registry,Planning and Development Services
Swale Borough Council,29UM,19/09/2018,1162352,12.00,LAND REGISTRY - (DT),                         ,PLANNING SERVICES,Fees - Land Registry,Planning and Development Services
Swale Borough Council,29UM,19/09/2018,1162352,9.00,LAND REGISTRY - (DT),                         ,ECONOMIC DEVELOPMENT,Fees - Land Registry,Planning and Development Services
Swale Borough Council,29UM,19/09/2018,1162352,4.00,LAND REGISTRY - (DT),                         ,SERVICE DELIVERY,Fees - Land Registry,Cultural and Related Services
Swale Borough Council,29UM,19/09/2018,1162352,9.00,LAND REGISTRY - (DT),                         ,HOUSING SERVICES,Fees - Land Registry,Housing
Swale Borough Council,29UM,19/09/2018,1162352,9.00,LAND REGISTRY - (DT),                         ,REVENUE SERVICES,Fees - Land Registry,Housing
Swale Borough Council,29UM,19/09/2018,1162352,131.00,LAND REGISTRY - (DT),                         ,PLANNING SERVICES,Fees - Land Registry,Internal Trading Cost Centres
Swale Borough Council,29UM,19/09/2018,1162352,45.00,LAND REGISTRY - (DT),                         ,PROPERTY SERVICES,Fees - Land Registry,Internal Trading Cost Centres
Swale Borough Council,29UM,19/09/2018,1162352,18.00,LAND REGISTRY - (DT),                         ,CONTRACT & PROCUREMENT,Fees - Land Registry,Internal Trading Cost Centres
Swale Borough Council,29UM,19/09/2018,1162352,108.00,LAND REGISTRY - (DT),                         ,ENVIRONMENTAL RESPONSE TEAM,Fees - Land Registry,Internal Trading Cost Centres
Swale Borough Council,29UM,19/09/2018,1162352,18.00,LAND REGISTRY - (DT),                         ,MKS ENVIRONMENTAL SERVICES,Fees - Land Registry,Internal Trading Cost Centres
Swale Borough Council,29UM,19/09/2018,1162352,108.00,LAND REGISTRY - (DT),                         ,HOUSING SERVICES,Fees - Land Registry,Housing
Swale Borough Council,29UM,19/09/2018,1162352,137.00,LAND REGISTRY - (DT),                         ,HOUSING SERVICES,Fees - Land Registry,Housing
Swale Borough Council,29UM,19/09/2018,1162303,1300.00,LEYSDOWN VILLAGE HALL,                         ,ECONOMY & COMMUNITIES,Grants & Subscriptions,Central Services to the Public
Swale Borough Council,29UM,19/09/2018,1162105,567.00,LILAC ESTATES,                         ,HOUSING SERVICES,B & B - Homelessness Landlord Payments,Housing
Swale Borough Council,29UM,19/09/2018,1162306,300.00,LILYPAD CHILDRENS CENTRE,                         ,ECONOMY & COMMUNITIES,Grants & Subscriptions,Central Services to the Public
Swale Borough Council,29UM,19/09/2018,1162300,600.00,LOWER HALSTOW PC,                         ,ECONOMY & COMMUNITIES,Grants & Subscriptions,Central Services to the Public
Swale Borough Council,29UM,19/09/2018,1162118,1384.00,MAGEES GUESTHOUSE,                         ,HOUSING SERVICES,B & B - Homelessness Landlord Payments,Housing
Swale Borough Council,29UM,19/09/2018,1162350,837086.00,MAIDSTONE BOROUGH COUNCIL - DT,                         ,FINANCIAL SERVICES,Tariff to Gvt,Taxation and Non-Specific Grant Income
Swale Borough Council,29UM,19/09/2018,1162054,8800.00,MAYLOW CONSTRUCTION LTD,                         ,LEISURE & OPEN SPACES,Maintenance - Grounds,Cultural and Related Services
Swale Borough Council,29UM,19/09/2018,1162088,1472.00,MEDWAY ACCOMMODATION LIMITED,                         ,HOUSING SERVICES,B & B - Homelessness Landlord Payments,Housing
Swale Borough Council,29UM,19/09/2018,1162088,306.67,MEDWAY ACCOMMODATION LIMITED,                         ,HOUSING SERVICES,B & B - Homelessness Landlord Payments,Housing
Swale Borough Council,29UM,19/09/2018,1162262,1500.00,REDACTED PERSONAL INFORMATION,                         ,ENVIRONMENTAL RESPONSE TEAM,Legal Fees,Planning and Development Services
Swale Borough Council,29UM,19/09/2018,1162262,300.00,REDACTED PERSONAL INFORMATION,                         ,ENVIRONMENTAL RESPONSE TEAM,Legal Fees,Planning and Development Services
Swale Borough Council,29UM,19/09/2018,1162252,425.00,REDACTED PERSONAL INFORMATION,09006853                 ,ENVIRONMENTAL RESPONSE TEAM,Legal Fees,Planning and Development Services
Swale Borough Council,29UM,19/09/2018,1162087,746.00,REDACTED PERSONAL INFORMATION,                         ,HOUSING SERVICES,B & B - Homelessness Landlord Payments,Housing
Swale Borough Council,29UM,19/09/2018,1162168,293.87,NPOWER,                         ,CONTRACT & PROCUREMENT,Electricity,Environmental and Regulatory Services
Swale Borough Council,29UM,19/09/2018,1162171,290.57,NPOWER,                         ,CONTRACT & PROCUREMENT,Electricity,Environmental and Regulatory Services
Swale Borough Council,29UM,19/09/2018,1162182,251.95,NPOWER,                         ,CONTRACT & PROCUREMENT,Electricity,Environmental and Regulatory Services
Swale Borough Council,29UM,19/09/2018,1162195,297.18,NPOWER,                         ,CAR PARKS,Electricity,Highway and Transport Services
Swale Borough Council,29UM,19/09/2018,1162353,11000.00,PINSENT MASONS LLP CLIENT ACCOUNT (DT),                         ,FINANCIAL SERVICES,STC - Capitalised Fees And Charges,Not used in this Structure
Swale Borough Council,29UM,19/09/2018,1162126,750.00,Q/BOROUGH & DIST NAVAL ENSIGN ASSOC,                         ,ECONOMY & COMMUNITIES,Grants & Subscriptions,Central Services to the Public
Swale Borough Council,29UM,19/09/2018,1162235,16933.00,QUEENBOROUGH HARBOUR TRUST,                         ,ECONOMIC DEVELOPMENT,Payments in Year,Ledger/Suspense Codes
Swale Borough Council,29UM,19/09/2018,1162354,20.82,RBS PURCHASING CARD (DT) - AMAZON ,                         ,TOURISM & SPORTS DEVELOPMENT,Stationery,Internal Trading Cost Centres
Swale Borough Council,29UM,19/09/2018,1162354,20.82,RBS PURCHASING CARD (DT) - AMAZON ,                         ,ECONOMIC DEVELOPMENT,Stationery,Internal Trading Cost Centres
Swale Borough Council,29UM,19/09/2018,1162354,83.00,RBS PURCHASING CARD (DT) - PREMIER INN ,                         ,ECONOMIC DEVELOPMENT,Conference,Internal Trading Cost Centres
Swale Borough Council,29UM,19/09/2018,1162354,83.00,RBS PURCHASING CARD (DT) - PREMIER INN ,,PLANNING SERVICES,Conference,Internal Trading Cost Centres
Swale Borough Council,29UM,19/09/2018,1162354,83.00,RBS PURCHASING CARD (DT) - PREMIER INN ,,PLANNING SERVICES,Conference,Internal Trading Cost Centres
Swale Borough Council,29UM,19/09/2018,1162355,25.30,RBS PURCHASING CARD (DT) - AMAZON ,,PROPERTY SERVICES,Equipment Purchase,Corporate & Democratic Core
Swale Borough Council,29UM,19/09/2018,1162355,28.90,RBS PURCHASING CARD (DT) - THIRSTY BOX,,PROPERTY SERVICES,Equipment Purchase,Corporate & Democratic Core
Swale Borough Council,29UM,19/09/2018,1162355,10.00,RBS PURCHASING CARD (DT) - GIFFGAFF,,PROPERTY SERVICES,Cellphone,Internal Trading Cost Centres
Swale Borough Council,29UM,19/09/2018,1162355,30.50,RBS PURCHASING CARD (DT) - TRADEFRAMES,,PROPERTY SERVICES,Equipment Purchase,Corporate & Democratic Core
Swale Borough Council,29UM,19/09/2018,1162356,33.27,RBS PURCHASING CARD (DT) - WILTSGROVE LTD,                         ,EMERGENCY PLANNING,Equipment Purchase,Central Services to the Public
Swale Borough Council,29UM,19/09/2018,1162356,-33.27,RBS PURCHASING CARD (DT) - WILTSGROVE LTD,                         ,EMERGENCY PLANNING,Equipment Purchase,Central Services to the Public
Swale Borough Council,29UM,19/09/2018,1162356,54.90,RBS PURCHASING CARD (DT) - AMAZON ,                         ,LICENCING,Equipment Purchase,Environmental and Regulatory Services
Swale Borough Council,29UM,19/09/2018,1162356,640.00,RBS PURCHASING CARD (DT) - WWW.ICO.GOV.UK,,CORPORATE SERVICES,Members - Outside Bodies Allowance,Corporate & Democratic Core
Swale Borough Council,29UM,19/09/2018,1162357,14.00,RBS PURCHASING CARD (DT) - ICELAND,,DIRECTOR OF REGENERATION,Catering Provisions,Internal Trading Cost Centres
Swale Borough Council,29UM,19/09/2018,1162358,201.50,RBS PURCHASING CARD (DT) - HMCTS,,REVENUE SERVICES,Fees and Services,Central Services to the Public
Swale Borough Council,29UM,19/09/2018,1162359,13.28,RBS PURCHASING CARD (DT) - AMAZON ,                         ,MKS LEGAL SERVICES,"Books, Journals & e - resources",Internal Trading Cost Centres
Swale Borough Council,29UM,19/09/2018,1162359,29.99,RBS PURCHASING CARD (DT) - AMAZON ,                         ,MKS LEGAL SERVICES,Equipment Purchase,Internal Trading Cost Centres
Swale Borough Council,29UM,19/09/2018,1162359,360.00,RBS PURCHASING CARD (DT) - SHELTER,,MKS LEGAL SERVICES,Training - Courses,Internal Trading Cost Centres
Swale Borough Council,29UM,19/09/2018,1162360,51.19,RBS PURCHASING CARD (DT) - JCT ONLINE,,PROPERTY SERVICES,"Books, Journals & e - resources",Internal Trading Cost Centres
Swale Borough Council,29UM,19/09/2018,1162360,20.06,RBS PURCHASING CARD (DT) - LTR SUPPLIES,,LEISURE & OPEN SPACES,Maintenance - Grounds,Cultural and Related Services
Swale Borough Council,29UM,19/09/2018,1162277,1480.05,ROYAL MAIL GROUP LTD,4138203                  ,PROPERTY SERVICES,Postage,Holding Codes
Swale Borough Council,29UM,19/09/2018,1162103,525.00,SHEPPEY ESTATES,                         ,HOUSING SERVICES,RDS - Landlord claim on Bond Scheme,Housing
Swale Borough Council,29UM,19/09/2018,1162151,954.00,SHEPPEY MATTERS,3946296                  ,TOURISM & SPORTS DEVELOPMENT,Grants & Subscriptions,Cultural and Related Services
Swale Borough Council,29UM,19/09/2018,1162133,900.00,SWALE CAP DEBT CENTRE,                         ,ECONOMY & COMMUNITIES,Grants & Subscriptions,Central Services to the Public
Swale Borough Council,29UM,19/09/2018,1162227,898.00,THE KINGS FERRY LIMITED,                         ,PLANNING SERVICES,Coaches / Minibus,Planning and Development Services
Swale Borough Council,29UM,19/09/2018,1162227,8.33,THE KINGS FERRY LIMITED,                         ,PLANNING SERVICES,Coaches / Minibus,Planning and Development Services
Swale Borough Council,29UM,19/09/2018,1162222,1425.00,THE OYSTER PARTNERSHIP,05020374                 ,PLANNING SERVICES,Agency/Contract Staff,Planning and Development Services
Swale Borough Council,29UM,19/09/2018,1162066,368.00,THOMSON REUTERS,1679046                  ,MKS LEGAL SERVICES,"Books, Journals & e - resources",Internal Trading Cost Centres
Swale Borough Council,29UM,19/09/2018,1162127,1455.00,TRAFALGAR TAVERN LTD,07999329                 ,HOUSING SERVICES,B & B - Homelessness Landlord Payments,Housing
Swale Borough Council,29UM,19/09/2018,1162217,2800.00,TUFFIN FERRABY TAYLOR LLP,OC306766                 ,FINANCIAL SERVICES,STC - Capitalised Fees And Charges,Not used in this Structure
Swale Borough Council,29UM,19/09/2018,1162131,1624.00,TUNSTALL PAROCHIAL CHURCH COUNCIL,                         ,ECONOMY & COMMUNITIES,Grants & Subscriptions,Central Services to the Public
Swale Borough Council,29UM,19/09/2018,1161644,425.47,VR SANI-CO LTD,3588359                  ,CONTRACT & PROCUREMENT,Hygiene Service Contracts,Environmental and Regulatory Services
Swale Borough Council,29UM,19/09/2018,1162135,527.15,WHISTL UK LIMITED,04417047                 ,REVENUE SERVICES,Postage,Central Services to the Public
Swale Borough Council,29UM,19/09/2018,1162135,263.57,WHISTL UK LIMITED,04417047                 ,REVENUE SERVICES,Postage,Housing
Swale Borough Council,29UM,19/09/2018,1162135,19.01,WHISTL UK LIMITED,04417047                 ,CAR PARKS,Postage,Internal Trading Cost Centres
Swale Borough Council,29UM,19/09/2018,1162135,117.26,WHISTL UK LIMITED,04417047                 ,PROPERTY SERVICES,Postage,Holding Codes
Swale Borough Council,29UM,19/09/2018,1162135,362.83,WHISTL UK LIMITED,04417047                 ,DEMOCRATIC & ELECTORAL SERVICES,Postage,Central Services to the Public
Swale Borough Council,29UM,19/09/2018,1162161,5328.22,WYNDEHAM PETERBOROUGH LTD,2261988                  ,COMMUNICATIONS,Developing & Printing,Corporate & Democratic Core
Swale Borough Council,29UM,26/09/2018,1162322,545.00,A.C MACKLIN FENCING,10311550                 ,LEISURE & OPEN SPACES,Maintenance - Grounds,Cultural and Related Services
Swale Borough Council,29UM,26/09/2018,1162322,450.00,A.C MACKLIN FENCING,10311550                 ,LEISURE & OPEN SPACES,Maintenance - Grounds,Cultural and Related Services
Swale Borough Council,29UM,26/09/2018,1162437,720.00,A.C MACKLIN FENCING,10311550                 ,LEISURE & OPEN SPACES,Maintenance - Grounds,Cultural and Related Services
Swale Borough Council,29UM,26/09/2018,1162437,402.98,A.C MACKLIN FENCING,10311550                 ,LEISURE & OPEN SPACES,Maintenance - Grounds,Cultural and Related Services
Swale Borough Council,29UM,26/09/2018,1162263,64.27,ALLSTAR BUSINESS SOLUTIONS LTD - (DT),1073098                  ,SERVICE DELIVERY,Petrol/Derv & Oil,Cultural and Related Services
Swale Borough Council,29UM,26/09/2018,1162263,495.12,ALLSTAR BUSINESS SOLUTIONS LTD - (DT),1073098                  ,ENVIRONMENTAL RESPONSE TEAM,Fuel For Contract Vehicles,Internal Trading Cost Centres
Swale Borough Council,29UM,26/09/2018,1162263,139.12,ALLSTAR BUSINESS SOLUTIONS LTD - (DT),1073098                  ,LEISURE & OPEN SPACES,Fuel For Contract Vehicles,Cultural and Related Services
Swale Borough Council,29UM,26/09/2018,1162158,102846.35,BLENWOOD LTD,4383277                  ,LEISURE & OPEN SPACES,Grounds Maint Suspense,Cultural and Related Services
Swale Borough Council,29UM,26/09/2018,1162319,750.00,BYGONE KENT,                         ,TOURISM & SPORTS DEVELOPMENT,Grants & Subscriptions,Cultural and Related Services
Swale Borough Council,29UM,26/09/2018,1162464,294.80,CANON UK LTD,1264300                  ,PROPERTY SERVICES,Paper,Internal Trading Cost Centres
Swale Borough Council,29UM,26/09/2018,1162431,805.41,CASTLE WATER LIMITED,SC475583                 ,LEISURE & OPEN SPACES,Water - Metered,Cultural and Related Services
Swale Borough Council,29UM,26/09/2018,1162401,450.96,CBS MAINTENANCE SERVICES LTD,                         ,PROPERTY SERVICES,Non-Planned Building Maintenance,Corporate & Democratic Core
Swale Borough Council,29UM,26/09/2018,1162490,6715.55,COLDWELL CONSTRUCTION LTD,4814340                  ,HOUSING SERVICES,Housing Renovation Grants,Not used in this Structure
Swale Borough Council,29UM,26/09/2018,1162491,7139.97,COLDWELL CONSTRUCTION LTD,4814340                  ,HOUSING SERVICES,Housing Renovation Grants,Not used in this Structure
Swale Borough Council,29UM,26/09/2018,1162492,940.69,COLDWELL CONSTRUCTION LTD,4814340                  ,HOUSING SERVICES,Housing Renovation Grants,Not used in this Structure
Swale Borough Council,29UM,26/09/2018,1162314,3344.10,COMMERCIAL SERVICES TRADING LTD,5858178                  ,ENVIRONMENTAL RESPONSE TEAM,Hire & Leases,Internal Trading Cost Centres
Swale Borough Council,29UM,26/09/2018,1162413,1000.00,DIVERSITY HOUSE LIMITED,6188059                  ,TOURISM & SPORTS DEVELOPMENT,Grants & Subscriptions,Cultural and Related Services
Swale Borough Council,29UM,26/09/2018,1162414,600.00,DIVERSITY HOUSE LIMITED,6188059                  ,ECONOMY & COMMUNITIES,Grants & Subscriptions,Central Services to the Public
Swale Borough Council,29UM,26/09/2018,1162312,3000.00,EXCELSIOR SAFEGUARDING CIC,10858996                 ,COMMUNITY SAFETY,Fees and Services,Planning and Development Services
Swale Borough Council,29UM,26/09/2018,1162426,295.00,FIRE & SECURITY CONSULTANCY LTD,5946022                  ,PROPERTY SERVICES,Service Contracts,Corporate & Democratic Core
Swale Borough Council,29UM,26/09/2018,1162418,2400.00,FURLEY PAGE LLP,OC317755                 ,FINANCIAL SERVICES,Fees and Services,Internal Trading Cost Centres
Swale Borough Council,29UM,26/09/2018,1162493,2474.00,HIGHER ELEVATION LTD,4078005                  ,HOUSING SERVICES,Housing Renovation Grants,Not used in this Structure
Swale Borough Council,29UM,26/09/2018,1162488,2738.80,HUBBARD & HOUGHTON CONSTRUCTION LTD,                         ,HOUSING SERVICES,Housing Renovation Grants,Not used in this Structure
Swale Borough Council,29UM,26/09/2018,1162489,4155.00,HUBBARD & HOUGHTON CONSTRUCTION LTD,                         ,HOUSING SERVICES,Housing Renovation Grants,Not used in this Structure
Swale Borough Council,29UM,26/09/2018,1162453,2900.00,INFORMATION COMMISSIONER,                         ,DIRECTOR OF CORPORATE SERVICES,Fees and Services,Corporate & Democratic Core
Swale Borough Council,29UM,26/09/2018,1162427,300.00,ISLAND CRUISES LIMITED,10955539                 ,TOURISM & SPORTS DEVELOPMENT,Fees and Services,Cultural and Related Services
Swale Borough Council,29UM,26/09/2018,1162287,500.00,LEMAR LIMITED,04350292                 ,SERVICE DELIVERY,Private Contractors - CIS,Highway and Transport Services
Swale Borough Council,29UM,26/09/2018,1162287,475.00,LEMAR LIMITED,04350292                 ,SERVICE DELIVERY,Private Contractors - CIS,Highway and Transport Services
Swale Borough Council,29UM,26/09/2018,1162288,300.00,LEMAR LIMITED,04350292                 ,SERVICE DELIVERY,Private Contractors - CIS,Highway and Transport Services
Swale Borough Council,29UM,26/09/2018,1162288,150.00,LEMAR LIMITED,04350292                 ,SERVICE DELIVERY,Private Contractors - CIS,Highway and Transport Services
Swale Borough Council,29UM,26/09/2018,1162289,300.00,LEMAR LIMITED,04350292                 ,SERVICE DELIVERY,Private Contractors - CIS,Highway and Transport Services
Swale Borough Council,29UM,26/09/2018,1162289,100.00,LEMAR LIMITED,04350292                 ,SERVICE DELIVERY,Private Contractors - CIS,Highway and Transport Services
Swale Borough Council,29UM,26/09/2018,1162290,300.00,LEMAR LIMITED,04350292                 ,SERVICE DELIVERY,Private Contractors - CIS,Highway and Transport Services
Swale Borough Council,29UM,26/09/2018,1162290,420.00,LEMAR LIMITED,04350292                 ,SERVICE DELIVERY,Private Contractors - CIS,Highway and Transport Services
Swale Borough Council,29UM,26/09/2018,1162292,300.00,LEMAR LIMITED,04350292                 ,CAR PARKS,Maintenance - Grounds,Highway and Transport Services
Swale Borough Council,29UM,26/09/2018,1162292,300.00,LEMAR LIMITED,04350292                 ,CAR PARKS,Maintenance - Grounds,Highway and Transport Services
Swale Borough Council,29UM,26/09/2018,1162403,500.00,LEMAR LIMITED,04350292                 ,SERVICE DELIVERY,Private Contractors - CIS,Highway and Transport Services
Swale Borough Council,29UM,26/09/2018,1162403,400.00,LEMAR LIMITED,04350292                 ,SERVICE DELIVERY,Private Contractors - CIS,Highway and Transport Services
Swale Borough Council,29UM,26/09/2018,1162404,2500.00,LEMAR LIMITED,04350292                 ,SERVICE DELIVERY,Private Contractors - CIS,Highway and Transport Services
Swale Borough Council,29UM,26/09/2018,1162404,2938.00,LEMAR LIMITED,04350292                 ,SERVICE DELIVERY,Private Contractors - CIS,Highway and Transport Services
Swale Borough Council,29UM,26/09/2018,1162405,300.00,LEMAR LIMITED,04350292                 ,LEISURE & OPEN SPACES,Maintenance - Grounds,Cultural and Related Services
Swale Borough Council,29UM,26/09/2018,1162405,150.00,LEMAR LIMITED,04350292                 ,LEISURE & OPEN SPACES,Maintenance - Grounds,Cultural and Related Services
Swale Borough Council,29UM,26/09/2018,1162421,300.00,LEMAR LIMITED,04350292                 ,CAR PARKS,Maintenance - Grounds,Highway and Transport Services
Swale Borough Council,29UM,26/09/2018,1162421,395.00,LEMAR LIMITED,04350292                 ,CAR PARKS,Maintenance - Grounds,Highway and Transport Services
Swale Borough Council,29UM,26/09/2018,1162422,500.00,LEMAR LIMITED,04350292                 ,CAR PARKS,Road Lining,Highway and Transport Services
Swale Borough Council,29UM,26/09/2018,1162422,422.50,LEMAR LIMITED,04350292                 ,CAR PARKS,Road Lining,Highway and Transport Services
Swale Borough Council,29UM,26/09/2018,1162423,300.00,LEMAR LIMITED,04350292                 ,CAR PARKS,Road Lining,Highway and Transport Services
Swale Borough Council,29UM,26/09/2018,1162423,520.00,LEMAR LIMITED,04350292                 ,CAR PARKS,Road Lining,Highway and Transport Services
Swale Borough Council,29UM,26/09/2018,1162282,-427.44,LEXISNEXIS UK,2746621                  ,MKS LEGAL SERVICES,"Books, Journals & e - resources",Internal Trading Cost Centres
Swale Borough Council,29UM,26/09/2018,1162282,-409.55,LEXISNEXIS UK,2746621                  ,MKS LEGAL SERVICES,"Books, Journals & e - resources",Internal Trading Cost Centres
Swale Borough Council,29UM,26/09/2018,1162330,1442.96,LLOYDS BANK - (DT),                         ,FINANCIAL SERVICES,Bank Charges,Corporate & Democratic Core
Swale Borough Council,29UM,26/09/2018,1161995,62024.63,MAIDSTONE BOROUGH COUNCIL,                         ,HUMAN RESOURCES,MKS Charges for HR Service,Internal Trading Cost Centres
Swale Borough Council,29UM,26/09/2018,1162261,1354.14,MAIDSTONE BOROUGH COUNCIL,                         ,MKS ICT,Computer Equipment & Materials,Internal Trading Cost Centres
Swale Borough Council,29UM,26/09/2018,1162261,260.36,MAIDSTONE BOROUGH COUNCIL,                         ,COMMISSIONING & CUSTOMER CONTACT,Computer Equipment & Materials,Internal Trading Cost Centres
Swale Borough Council,29UM,26/09/2018,1162261,633.33,MAIDSTONE BOROUGH COUNCIL,                         ,PLANNING SERVICES,Computer Equipment & Materials,Internal Trading Cost Centres
Swale Borough Council,29UM,26/09/2018,1162311,4791.67,MAIDSTONE BOROUGH COUNCIL,                         ,FINANCIAL SERVICES,Payments in Year,Ledger/Suspense Codes
Swale Borough Council,29UM,26/09/2018,1162451,7700.00,MAIDSTONE BOROUGH COUNCIL,                         ,CAR PARKS,Fees - Licence,Highway and Transport Services
Swale Borough Council,29UM,26/09/2018,1161911,17994.20,MONITOR CLEANING SERVICES LTD,02526388                 ,CONTRACT & PROCUREMENT,Private Contractors,Environmental and Regulatory Services
Swale Borough Council,29UM,26/09/2018,1162478,500.00,MS SWALE,                         ,TOURISM & SPORTS DEVELOPMENT,Grants & Subscriptions,Cultural and Related Services
Swale Borough Council,29UM,26/09/2018,1162185,391.66,NPOWER,                         ,LEISURE & OPEN SPACES,Electricity,Cultural and Related Services
Swale Borough Council,29UM,26/09/2018,1162239,276.92,NPOWER,                         ,LEISURE & OPEN SPACES,Electricity,Cultural and Related Services
Swale Borough Council,29UM,26/09/2018,1162400,12795.00,PERRY MOTOR SALES LTD,                         ,FINANCIAL SERVICES,Payments in Year,Ledger/Suspense Codes
Swale Borough Council,29UM,26/09/2018,1162439,282.00,RESPONSE ENVELOPES LIMITED,6126705                  ,PROPERTY SERVICES,Paper,Internal Trading Cost Centres
Swale Borough Council,29UM,26/09/2018,1162441,618.28,ROYAL MAIL GROUP LTD,4138203                  ,REVENUE SERVICES,Postage,Central Services to the Public
Swale Borough Council,29UM,26/09/2018,1162254,775.00,RULE AND RULE,                         ,HOUSING SERVICES,Homelessness  Prevention Services,Housing
Swale Borough Council,29UM,26/09/2018,1162094,11660.43,SERCO LEISURE OPERATING LIMITED,04687478                 ,LEISURE & OPEN SPACES,Procurement Contracts Only,Cultural and Related Services
Swale Borough Council,29UM,26/09/2018,1162416,800.00,SITTINGBOURNE IN BLOOM,                         ,ECONOMY & COMMUNITIES,Grants & Subscriptions,Central Services to the Public
Swale Borough Council,29UM,26/09/2018,1162487,10176.01,SOUTH EAST BUILDING CO LTD,1786838                  ,HOUSING SERVICES,Housing Renovation Grants,Not used in this Structure
Swale Borough Council,29UM,26/09/2018,1162531,99365.00,SPIRIT OF SITTINGBOURNE LLP,OC377168                 ,FINANCIAL SERVICES,STC - Capitalised Fees And Charges,Not used in this Structure
Swale Borough Council,29UM,26/09/2018,1162532,318148.24,SPIRIT OF SITTINGBOURNE LLP,OC377168                 ,FINANCIAL SERVICES,STC - Construction,Not used in this Structure
Swale Borough Council,29UM,26/09/2018,1162424,250.00,SWALE CAP DEBT CENTRE,                         ,ECONOMY & COMMUNITIES,Grants & Subscriptions,Central Services to the Public
Swale Borough Council,29UM,26/09/2018,1162481,7500.00,SWALE COMMUNITY & VOLUNTARY SERVICES,277523                   ,TOURISM & SPORTS DEVELOPMENT,Voluntary Organisations Grants,Central Services to the Public
Swale Borough Council,29UM,26/09/2018,1162095,12510.14,SWALE COMMUNITY LEISURE LIMITED,31132R                   ,LEISURE & OPEN SPACES,Procurement Contracts Only,Cultural and Related Services
Swale Borough Council,29UM,26/09/2018,1162096,7700.00,SWALE COMMUNITY LEISURE LIMITED,31132R                   ,LEISURE & OPEN SPACES,Procurement Contracts Only,Cultural and Related Services
Swale Borough Council,29UM,26/09/2018,1162293,487.00,TUNBRIDGE WELLS BOROUGH COUNCIL,                         ,MKS ICT,Telephone,Corporate & Democratic Core
Swale Borough Council,29UM,26/09/2018,1162408,23.84,VR SANI-CO LTD,3588359                  ,TOURISM & SPORTS DEVELOPMENT,Service Contracts,Cultural and Related Services
Swale Borough Council,29UM,26/09/2018,1162408,12.50,VR SANI-CO LTD,3588359                  ,TOURISM & SPORTS DEVELOPMENT,Service Contracts,Cultural and Related Services
Swale Borough Council,29UM,26/09/2018,1162408,28.17,VR SANI-CO LTD,3588359                  ,TOURISM & SPORTS DEVELOPMENT,Service Contracts,Cultural and Related Services
Swale Borough Council,29UM,26/09/2018,1162408,35.76,VR SANI-CO LTD,3588359                  ,PROPERTY SERVICES,Service Contracts,Cultural and Related Services
Swale Borough Council,29UM,26/09/2018,1162408,5.96,VR SANI-CO LTD,3588359                  ,COMMUNITY SAFETY,Service Contracts,Cultural and Related Services
Swale Borough Council,29UM,26/09/2018,1162408,26.07,VR SANI-CO LTD,3588359                  ,TOURISM & SPORTS DEVELOPMENT,Service Contracts,Cultural and Related Services
Swale Borough Council,29UM,26/09/2018,1162408,26.00,VR SANI-CO LTD,3588359                  ,PROPERTY SERVICES,Service Contracts,Corporate & Democratic Core
Swale Borough Council,29UM,26/09/2018,1162408,214.56,VR SANI-CO LTD,3588359                  ,PROPERTY SERVICES,Service Contracts,Corporate & Democratic Core
Swale Borough Council,29UM,26/09/2018,1162408,50.00,VR SANI-CO LTD,3588359                  ,PROPERTY SERVICES,Service Contracts,Corporate & Democratic Core
Swale Borough Council,29UM,26/09/2018,1162408,14.08,VR SANI-CO LTD,3588359                  ,PROPERTY SERVICES,Service Contracts,Corporate & Democratic Core
Swale Borough Council,29UM,26/09/2018,1162218,460.00,WESTMINSTER SOCIAL POLICY FORUM,                         ,PLANNING SERVICES,Newspapers & Periodicals,Internal Trading Cost Centres
Swale Borough Council,29UM,26/09/2018,1162309,1060.58,WHISTL UK LIMITED,04417047                 ,REVENUE SERVICES,Postage,Central Services to the Public
Swale Borough Council,29UM,26/09/2018,1162309,530.29,WHISTL UK LIMITED,04417047                 ,REVENUE SERVICES,Postage,Housing
Swale Borough Council,29UM,26/09/2018,1162309,5.52,WHISTL UK LIMITED,04417047                 ,CAR PARKS,Postage,Internal Trading Cost Centres
Swale Borough Council,29UM,26/09/2018,1162309,116.55,WHISTL UK LIMITED,04417047                 ,PROPERTY SERVICES,Postage,Holding Codes
Swale Borough Council,29UM,26/09/2018,1162309,736.30,WHISTL UK LIMITED,04417047                 ,DEMOCRATIC & ELECTORAL SERVICES,Postage,Central Services to the Public
Swale Borough Council,29UM,26/09/2018,1162540,1648.67,WORLDPAY (DT),07316500                 ,REVENUE SERVICES,Commission Paid,Central Services to the Public
Swale Borough Council,29UM,26/09/2018,1162540,47.66,WORLDPAY (DT),07316500                 ,REVENUE SERVICES,Commission Paid,Central Services to the Public
Swale Borough Council,29UM,26/09/2018,1162540,1.31,WORLDPAY (DT),07316500                 ,REVENUE SERVICES,Commission Paid,Housing
Swale Borough Council,29UM,26/09/2018,1162540,5.88,WORLDPAY (DT),07316500                 ,EXCHEQUER,Commission Paid,Internal Trading Cost Centres
Swale Borough Council,29UM,26/09/2018,1162540,472.66,WORLDPAY (DT),07316500                 ,EXCHEQUER,Commission Paid,Internal Trading Cost Centres
Swale Borough Council,29UM,26/09/2018,1162540,2.50,WORLDPAY (DT),07316500                 ,EXCHEQUER,Commission Paid,Internal Trading Cost Centres
Swale Borough Council,29UM,26/09/2018,1162541,2169.92,WORLDPAY (DT),07316500                 ,REVENUE SERVICES,Commission Paid,Central Services to the Public
Swale Borough Council,29UM,26/09/2018,1162541,91.50,WORLDPAY (DT),07316500                 ,REVENUE SERVICES,Commission Paid,Central Services to the Public
Swale Borough Council,29UM,26/09/2018,1162541,21.89,WORLDPAY (DT),07316500                 ,REVENUE SERVICES,Commission Paid,Housing
Swale Borough Council,29UM,26/09/2018,1162541,58.01,WORLDPAY (DT),07316500                 ,EXCHEQUER,Commission Paid,Internal Trading Cost Centres
Swale Borough Council,29UM,26/09/2018,1162541,295.60,WORLDPAY (DT),07316500                 ,EXCHEQUER,Commission Paid,Internal Trading Cost Centres
Swale Borough Council,29UM,26/09/2018,1162541,2.94,WORLDPAY (DT),07316500                 ,EXCHEQUER,Commission Paid,Internal Trading Cost Centres
